[Event "LV Capablanca Memorial Elite 2022"]
[Site "La Habana"]
[Date "2022.04.27"]
[Round "8.2"]
[White "Ganguly, Surya Shekhar"]
[Black "Mareco, Sandro"]
[Result "1/2-1/2"]
[ECO "D35"]
[WhiteElo "2627"]
[BlackElo "2643"]
[Annotator "TA"]
[PlyCount "55"]
[EventDate "2022.04.20"]
[EventType "tourn"]
[EventCountry "CUB"]
[SourceTitle "playchess.com"]
[Source "ChessBase"]
[SourceQuality "1"]
[TimeControl "40/5400+30:1800+30"]

{[%evp 12,55,25,20,12,12,16,9,25,17,14,16,26,24,26,25,39,22,25,14,29,22,22,29,27,24,46,0,0,0,4,0,81,0,0,7,0,-42,31,29,25,24,26,27,45,48]} 1. d4 {[%emt 0:00:10]} Nf6 {[%emt 0:00:06]} 2. c4 {[%emt 0:00:12]} e6 {[%emt 0:00:04]} 3. Nc3 {[%emt 0:00:16]} d5 {[%emt 0:00:12]} 4. cxd5 {[%emt 0:00:36]} exd5 {[%emt 0:00:06]} 5. Bg5 {[%emt 0:00:17]} c6 {[%emt 0:00:14]} 6. e3 {[%emt 0:00:17]} Bd6 {[%emt 0:04:00]} 7. Bd3 {[%emt 0:02:40]} h6 {[%emt 0:00:10] D35: Queen's Gambit Declined: Exchange Variation.} 8. Bh4 {[%emt 0:00:14]} O-O {[%emt 0:00:05]} 9. Nf3 {[%emt 0:06:14]} Re8 {[%emt 0:04:52] Against Ne5. The position is equal.} 10. O-O {[%emt 0:00:23]} Nbd7 {[%emt 0:17:42]} 11. Re1 {[%emt 0:06:33]} Be7 {[%emt 0:02:55]} 12. Qc2 {[%emt 0:05:01]} Nf8 {[%emt 0:08:08]} 13. Ne5 {[%emt 0:05:40] [#]} N6d7 $146 {[%emt 0:28:38]} ({Predecessor:} 13... Ng4 14. Bg3 Bf6 15. Nf3 Be6 16. h3 h5 17. hxg4 hxg4 18. Nh2 Bh4 19. Nf1 Bxg3 20. Nxg3 {1-0 (41) Vallejos,J (1873)-Bigatto,P (1535) Sao Paulo 2019}) 14. Bg3 {[%emt 0:04:44]} Nxe5 {[%emt 0:01:16]} 15. Bxe5 {[%emt 0:03:42]} Be6 {[%emt 0:00:36]} 16. a3 {[%emt 0:03:08]} Rc8 {[%emt 0:01:41]} 17. b4 {[%emt 0:01:34]} b5 {[%emt 0:01:33]} 18. Ne2 {[%emt 0:09:15]} a5 {[%emt 0:03:08]} 19. Rab1 {[%emt 0:02:38]} axb4 {[%emt 0:02:10]} 20. axb4 {[%emt 0:00:32]} Nd7 {[%emt 0:01:04]} 21. Nf4 {[%emt 0:04:08]} Nf8 {[%emt 0:12:45]} (21... Bg4 $1 $11 {keeps the balance.}) 22. Qe2 {[%emt 0:07:35] White is much more active.} (22. Nh5 $16) 22... Bd7 $11 {[%emt 0:00:31] [#] ...f6 is the strong threat.} 23. Nh5 {[%emt 0:01:46]} g6 {[%emt 0:03:40]} 24. Nf4 {[%emt 0:09:45]} ({Don't play} 24. Ng7 f6 25. Nxe8 fxe5 $15) 24... Bf6 {[%emt 0:01:35]} ({Black should play} 24... f6 $15 25. Nxg6 fxe5 26. Nxe5 Bd6) 25. Bxf6 $14 {[%emt 0:05:56]} Qxf6 {[%emt 0:00:03]} 26. Qc2 {[%emt 0:00:08]} Ra8 {[%emt 0:01:25]} 27. Ra1 {[%emt 0:00:17]} h5 {[%emt 0:02:04]} 28. Bf1 {[%emt 0:06:48] Weighted Error Value: White=0.10 (very precise) /Black=0.13 (very precise)} 1/2-1/2

[Event "LV Capablanca Memorial Elite 2022"]
[Site "La Habana"]
[Date "2022.04.27"]
[Round "8.3"]
[White "Quesada Perez, Yasser"]
[Black "Ortiz Suarez, Isan Reynaldo"]
[Result "1/2-1/2"]
[ECO "E17"]
[WhiteElo "2568"]
[BlackElo "2531"]
[Annotator "TA"]
[PlyCount "29"]
[EventDate "2022.04.20"]
[EventType "tourn"]
[EventCountry "CUB"]
[SourceTitle "playchess.com"]
[Source "ChessBase"]
[SourceQuality "1"]
[TimeControl "40/5400+30:1800+30"]

{[%evp 18,29,7,4,17,21,33,2,18,0,6,0,14,4]} 1. c4 {[%emt 0:00:02]} Nf6 {[%emt 0:00:14]} 2. Nf3 {[%emt 0:00:10]} e6 {[%emt 0:00:07]} 3. b3 {[%emt 0:00:19]} d5 {[%emt 0:00:10]} 4. Bb2 {[%emt 0:00:16]} Be7 {[%emt 0:00:11]} 5. g3 {[%emt 0:01:20]} O-O {[%emt 0:00:20]} 6. Bg2 {[%emt 0:00:13]} b6 {[%emt 0:00:35]} 7. O-O {[%emt 0:01:57]} Bb7 {[%emt 0:00:54]} 8. cxd5 {[%emt 0:01:01]} exd5 {[%emt 0:01:11]} 9. d4 {[%emt 0:01:27]} Nbd7 {[%emt 0:00:56]} 10. Nc3 {[%emt 0:00:13][%cal Bb1c3,Bc3e2,Be2f4][%mdl 32]} a6 {[%emt 0:03:12] E17: Queen's Indian: 4 g3 Bb7 5 Bg2 Be7.} 11. Rc1 {[%emt 0:00:30]} Bd6 {[%emt 0:00:19]} 12. e3 {[%emt 0:01:02]} Qe7 {[%emt 0:01:01] The position is equal.} 13. Ne2 {[%emt 0:00:20]} Ne4 {[%emt 0:00:39]} 14. Nf4 {[%emt 0:01:13] [#]} Rad8 $146 {[%emt 0:00:55]} ({Predecessor:} 14... a5 15. Qc2 Rac8 16. Rfd1 Rfe8 17. Ne5 f6 18. Bxe4 fxe5 19. Bxh7+ Kf7 20. Qg6+ Kf8 21. Qf5+ Qf6 22. Ng6+ Kf7 23. Qxd7+ Be7 24. dxe5 {1-0 (24) Triapishko,A (2506)-Zakaryan,D (2283) Sochi 2021}) 15. Nd2 {[%emt 0:01:50] Not much happened in this game.  Weighted Error Value: White=0.11 (very precise) /Black=0.12 (very precise)} 1/2-1/2

[Event "LV Capablanca Memorial Elite 2022"]
[Site "La Habana"]
[Date "2022.04.27"]
[Round "8.4"]
[White "Albornoz Cabrera, Carlos Daniel"]
[Black "Quesada Perez, Luis Ernesto"]
[Result "1/2-1/2"]
[ECO "B12"]
[WhiteElo "2567"]
[BlackElo "2517"]
[Annotator "TA"]
[PlyCount "47"]
[EventDate "2022.04.20"]
[EventType "tourn"]
[EventCountry "CUB"]
[SourceTitle "playchess.com"]
[Source "ChessBase"]
[SourceQuality "1"]
[TimeControl "40/5400+30:1800+30"]

{[%evp 15,47,22,30,35,40,31,42,51,33,48,36,18,11,18,21,12,22,6,0,3,3,0,0,-13,-4,-4,-6,-16,0,-29,51,56,108,0]} 1. e4 {[%emt 0:00:02]} c6 {[%emt 0:04:19]} 2. d4 {[%emt 0:00:11]} d5 {[%emt 0:00:07]} 3. e5 {[%emt 0:00:04]} Bf5 {[%emt 0:00:07]} 4. Nf3 {[%emt 0:00:05]} e6 {[%emt 0:00:08]} 5. Be2 {[%emt 0:00:07]} c5 {[%emt 0:01:05]} 6. Be3 {[%emt 0:00:09]} cxd4 {[%emt 0:00:23]} 7. Nxd4 {[%emt 0:00:07]} Ne7 {[%emt 0:00:04]} 8. O-O {[%emt 0:00:20]} Nbc6 {[%emt 0:00:06]} 9. Bb5 {[%emt 0:00:12] B12: Caro-Kann: Advance Variation.} a6 {[%emt 0:03:08]} 10. Bxc6+ {[%emt 0:00:07]} Nxc6 {[%emt 0:00:01]} 11. Nxf5 {[%emt 0:00:10] White is slightly better.} exf5 {[%emt 0:00:06]} 12. c3 {[%emt 0:03:13] Inhibits d4.} Be7 {[%emt 0:00:15]} 13. Nd2 {[%emt 0:18:01]} Nxe5 {[%emt 0:00:13]} 14. Bd4 {[%emt 0:00:06]} f6 {[%emt 0:00:05]} 15. Re1 {[%emt 0:02:04][%mdl 1024] White has compensation.} Nc6 {[%emt 0:00:13]} 16. Qb3 {[%emt 0:10:20] [#] With the idea Bb6.} b5 $146 {[%emt 0:22:08]} (16... Nxd4 {with more complications.} 17. Qxb7 Kf7 18. cxd4 Qd6) ({Predecessor:} 16... Qd7 17. Nf3 O-O 18. Rad1 Na5 19. Rxe7 Qd8 20. Qa3 Nc4 21. Qb4 a5 22. Qxb7 {1-0 (22) Matviishen,V (2495)-Krishna Teja,N (2368) Pardubice 2019}) 17. Nf3 {[%emt 0:24:56]} O-O {[%emt 0:05:40]} 18. Rad1 {[%emt 0:03:01]} Na5 {[%emt 0:01:25]} 19. Qc2 {[%emt 0:00:01]} Qd7 {[%emt 0:00:08]} 20. Re2 {[%emt 0:04:23]} Rfe8 {[%emt 0:02:09]} 21. Rde1 {[%emt 0:01:32]} Kf7 {[%emt 0:10:43] Prevents Re6.} 22. g3 {[%emt 0:21:42][%cal Oe2e6]} g6 {[%emt 0:01:47]} (22... Bd6 $11) 23. Qd2 $1 $14 {[%emt 0:02:18] [#] Hoping for Qh6.} g5 {[%emt 0:17:40]} (23... Kg8 $14) 24. Qxg5 {[%emt 0:07:57] Weighted Error Value: White=0.05 (flawless) /Black=0.16 (very precise)} 1/2-1/2

[Event "LV Capablanca Memorial Elite 2022"]
[Site "La Habana"]
[Date "2022.04.27"]
[Round "8.5"]
[White "Almeida Quintana, Omar"]
[Black "Niemann, Hans Moke"]
[Result "1/2-1/2"]
[ECO "E12"]
[WhiteElo "2535"]
[BlackElo "2642"]
[Annotator "TA"]
[PlyCount "55"]
[EventDate "2022.04.20"]
[EventType "tourn"]
[EventCountry "CUB"]
[SourceTitle "playchess.com"]
[Source "ChessBase"]
[SourceQuality "1"]
[TimeControl "40/5400+30:1800+30"]

{[%evp 15,55,0,0,0,0,0,0,0,20,0,3,0,42,14,22,-17,-20,-20,-20,-23,-13,-35,-38,-32,-37,-47,-44,-56,-31,-34,-9,-9,-16,-12,-12,-11,-6,-14,0,0,0,0]} 1. d4 {[%emt 0:00:03]} Nf6 {[%emt 0:00:32]} 2. c4 {[%emt 0:00:06]} e6 {[%emt 0:01:04]} 3. Nf3 {[%emt 0:00:13]} b6 {[%emt 0:01:19]} 4. a3 {[%emt 0:00:21]} Bb7 {[%emt 0:01:29]} 5. Nc3 {[%emt 0:00:18]} d5 {[%emt 0:00:46]} 6. Bg5 {[%emt 0:05:38]} Be7 {[%emt 0:03:55]} 7. e3 {[%emt 0:03:39]} O-O {[%emt 0:01:23]} 8. Rc1 {[%emt 0:00:03]} c5 {[%emt 0:06:16]} 9. dxc5 {[%emt 0:00:31] E12: Queen's Indian: Unusual White 4th moves, 4 a3, 4 Nc3 Bb7 5 a3 and 4 Nc3 Bb7 .} bxc5 {[%emt 0:01:25]} 10. Be2 {[%emt 0:00:04]} Nbd7 {[%emt 0:06:42]} 11. O-O {[%emt 0:00:08]} Rc8 {[%emt 0:03:40] [#]} 12. Qb3 $146 {[%emt 0:08:53]} ({Predecessor:} 12. h3 Ne4 13. Bxe7 Qxe7 14. cxd5 Nxc3 15. Rxc3 exd5 16. Qa4 d4 17. exd4 Qxe2 18. Qxd7 Qxb2 19. Rxc5 {½-½ (30) Injac,T (2387)-Atalik,E (2430) Terme Catez 2021}) 12... Qb6 {[%emt 0:06:29]} 13. Qxb6 {[%emt 0:00:37]} axb6 {[%emt 0:02:01]} 14. Rfd1 {[%emt 0:01:22]} Rfd8 {[%emt 0:03:10]} 15. Rc2 {[%emt 0:08:43]} h6 {[%emt 0:06:40]} 16. Bh4 {[%emt 0:04:24]} g5 {[%emt 0:00:19]} 17. Bg3 {[%emt 0:00:11]} Ne4 {[%emt 0:00:12]} 18. Nxe4 {[%emt 0:14:05]} (18. cxd5 $5 {[%cal Rc3e4]} Nxc3 19. bxc3 $11) 18... dxe4 {[%emt 0:00:15]} 19. Nd2 {[%emt 0:00:27]} Bc6 {[%emt 0:01:41]} 20. f3 {[%emt 0:05:51]} exf3 {[%emt 0:09:41]} 21. Bxf3 {[%emt 0:00:31]} Nf6 {[%emt 0:00:28]} 22. Kf2 {[%emt 0:05:56]} Bd6 {[%emt 0:01:11]} 23. Bxd6 {[%emt 0:02:31] The position is equal.} Rxd6 {[%emt 0:00:14]} 24. Bxc6 {[#] Strongly threatening Bf3.} Rcxc6 {[%emt 0:00:30]} 25. Ke2 Rc8 {[%emt 0:00:30]} 26. Rf1 e5 {[%emt 0:00:30]} 27. Nb1 Ne4 {[%emt 0:00:30]} 28. Nd2 {Weighted Error Value: White=0.07 (flawless) /Black=0.06 (flawless)} 1/2-1/2

[Event "LV Capablanca Memorial Elite 2022"]
[Site "La Habana"]
[Date "2022.04.28"]
[Round "9.1"]
[White "Niemann, Hans Moke"]
[Black "Yilmaz, Mustafa"]
[Result "1-0"]
[ECO "B51"]
[WhiteElo "2642"]
[BlackElo "2627"]
[Annotator "TA"]
[PlyCount "77"]
[EventDate "2022.04.20"]
[EventType "tourn"]
[EventCountry "CUB"]
[SourceTitle "playchess.com"]
[Source "ChessBase"]
[SourceQuality "1"]
[TimeControl "40/5400+30:1800+30"]

{[%evp 9,77,19,27,16,15,14,7,0,0,2,0,0,0,0,0,0,13,23,68,72,66,70,58,29,86,92,111,99,101,80,99,99,271,280,266,283,527,477,535,534,512,479,429,430,916,882,1088,0,698,0,1113,706,672,665,661,660,708,685,699,698,659,635,1164,1150,29967,29968,5687,796,29989,29990]} 1. e4 {[%emt 0:00:29]} c5 {[%emt 0:00:24]} 2. Nf3 {[%emt 0:00:37]} d6 {[%emt 0:00:06]} 3. Bb5+ {[%emt 0:00:18]} Nd7 {[%emt 0:00:05]} 4. O-O {[%emt 0:00:52]} a6 {[%emt 0:00:26]} 5. Bd3 {[%emt 0:00:53]} Ngf6 {[%emt 0:00:06]} 6. Re1 {[%emt 0:00:34] B51: Sicilian: Moscow Variation (3 Bb5+) without 3...Bd7.} e6 {[%emt 0:00:21] 6...e6 scores better than 6...b5.} 7. Bf1 {[%emt 0:00:54]} b6 {[%emt 0:11:41]} 8. c4 {[%emt 0:00:46] The position is equal.} Bb7 {[%emt 0:02:17]} 9. Nc3 {[%emt 0:00:11] [#]} Ne5 $146 {[%emt 0:00:28]} ({Predecessor:} 9... Be7 10. d4 cxd4 11. Nxd4 O-O 12. b3 Nc5 13. f3 Re8 14. Bb2 Rc8 15. Qd2 Rc7 {½-½ (24) Lu,S (2628)-Wei,Y (2753) Huocheng County 2017}) 10. d4 {[%emt 0:00:05]} Nxf3+ {[%emt 0:02:31]} 11. gxf3 {[%emt 0:00:52]} Be7 {[%emt 0:06:07]} 12. d5 {[%emt 0:00:08]} e5 {[%emt 0:09:28]} 13. f4 {[%emt 0:00:08]} Bc8 {[%emt 0:03:24]} 14. fxe5 {[%emt 0:05:05]} dxe5 {[%emt 0:00:33]} 15. f4 {[%emt 0:00:12]} Bd6 {[%emt 0:02:08]} 16. Qf3 {[%emt 0:05:38]} Qc7 {[%emt 0:02:24]} (16... g6 $11) 17. f5 {[%emt 0:05:18] Black is now going downhill.} Be7 {[%emt 0:05:47]} 18. Bg5 {[%emt 0:03:04]} Qd6 {[%emt 0:03:15][%cal Of6d5]} 19. Bh3 {[%emt 0:16:35] White is more active.} Bd7 {[%emt 0:08:41]} 20. a4 {[%emt 0:02:20]} Nxd5 $2 {[%emt 0:03:16]} 21. exd5 $18 {[%emt 0:20:06][%cal Be4d5,Bd5d6][%mdl 32] And now Ne4 would win.} Bxg5 {[%emt 0:00:04] [#]} 22. f6 $1 {[%emt 0:04:38]} Bxf6 $2 {[%emt 0:07:13]} (22... Bxh3 23. Ne4 (23. fxg7 Rg8 $11) 23... Qd8) 23. Ne4 {[%emt 0:00:13]} Qe7 {[%emt 0:05:17]} 24. d6 {[%emt 0:09:44]} Qd8 {[%emt 0:00:05]} 25. Bxd7+ {[%emt 0:00:07]} Kxd7 {[%emt 0:00:03]} 26. a5 {[%emt 0:00:17]} (26. Nc3 Ra7 $16) 26... Rc8 {[%emt 0:08:53]} (26... Rb8 $142 27. Red1 (27. axb6 Rxb6 28. b4 cxb4 $18) 27... Ke8 28. d7+ Kf8 29. axb6 Rxb6 30. Nxc5 g6) 27. Qh3+ {[%emt 0:09:19]} Kc6 {[%emt 0:01:08]} 28. Qf3 {[%emt 0:01:25]} Kd7 {[%emt 0:00:16]} 29. Qh3+ {[%emt 0:02:29]} (29. axb6 $142 Qxb6 30. Red1 (30. Nxf6+ gxf6 31. Qf5+ Kc6 $16)) 29... Kc6 $1 {[%emt 0:00:04]} 30. Qd3 {[%emt 0:00:02]} Kb7 {[%emt 0:04:11]} 31. Qd5+ {[%emt 0:00:06]} Kb8 {[%emt 0:02:48]} 32. d7 {[%emt 0:06:22]} Rc7 {[%emt 0:00:06]} 33. Red1 {[%emt 0:00:04]} Rb7 {[%emt 0:04:33]} 34. axb6 {[%emt 0:01:34]} Qxb6 {[%emt 0:01:15]} 35. Nxf6 {[%emt 0:00:13]} Rd8 {[%emt 0:00:19]} 36. Qxe5+ {[%emt 0:00:17]} Ka7 {[%emt 0:01:08] [#]} 37. Rd6 $1 {[%emt 0:00:54]} gxf6 {[%emt 0:01:35]} 38. Qxf6 {[%emt 0:00:26]} (38. Qd5 $142 Rbxd7 39. Rxd7+ Rxd7 40. Qxd7+ Qb7 41. Qd6) 38... Rg8+ {[%emt 0:01:08]} 39. Kh1 {[%emt 0:00:42] Weighted Error Value: White=0.36/Black=0.38} 1-0

[Event "LV Capablanca Memorial Elite 2022"]
[Site "La Habana"]
[Date "2022.04.28"]
[Round "9.2"]
[White "Quesada Perez, Luis Ernesto"]
[Black "Almeida Quintana, Omar"]
[Result "1-0"]
[ECO "B07"]
[WhiteElo "2517"]
[BlackElo "2535"]
[Annotator "TA"]
[PlyCount "80"]
[EventDate "2022.04.20"]
[EventType "tourn"]
[EventCountry "CUB"]
[SourceTitle "playchess.com"]
[Source "ChessBase"]
[SourceQuality "1"]
[TimeControl "40/5400+30:1800+30"]

{[%evp 10,80,47,30,63,56,64,44,56,54,65,48,57,57,143,91,106,133,133,75,85,72,89,75,119,111,109,97,116,100,125,130,131,120,152,172,150,146,233,235,222,210,369,383,364,363,366,320,315,308,315,324,324,312,355,361,345,344,479,479,471,441,410,397,341,366,880,878,845,828,789,792,29985]} 1. e4 {[%emt 0:02:47]} d6 {[%emt 0:00:11]} 2. d4 {[%emt 0:00:06]} Nf6 {[%emt 0:00:06]} 3. Nc3 {[%emt 0:00:05]} g6 {[%emt 0:00:08]} 4. Bg5 {[%emt 0:01:01]} Bg7 {[%emt 0:00:07]} 5. Qd2 {[%emt 0:00:14]} h6 {[%emt 0:02:03]} 6. Bf4 {[%emt 0:01:17]} g5 {[%emt 0:00:43] B07: Pirc Defence: Miscellaneous Systems.} 7. Be3 {[%emt 0:00:00]} Ng4 {[%emt 0:00:07]} 8. O-O-O {[%emt 0:00:06]} Nd7 {[%emt 0:00:05] White is slightly better.} 9. h4 {[%emt 0:00:12]} Nxe3 {[%emt 0:00:07]} 10. Qxe3 {[%emt 0:00:06]} g4 {[%emt 0:01:54]} 11. e5 {[%emt 0:00:14] [#]} c5 $146 {[%emt 0:03:00]} (11... Nb6 $14) ({Predecessor:} 11... h5 12. Kb1 Nb6 13. Bd3 Bd7 14. f3 dxe5 15. dxe5 c6 16. f4 Qc7 17. Qc5 Bf8 {1-0 (55) Philipps,R (2434)-Conterno,D (2332) ICCF email 2017}) 12. exd6 {[%emt 0:31:25]} (12. dxc5 $142 $1 Nxe5 13. Bb5+ Kf8 14. cxd6) 12... h5 {[%emt 0:13:46]} 13. dxe7 {[%emt 0:02:39] White is much more active. The black rooks are badly placed.} (13. dxc5 $2 Bh6 14. f4 gxf3 15. Qxh6 Rxh6 $19) 13... Qxe7 {[%emt 0:00:13] Hoping for ...Bh6.} 14. Qxe7+ {[%emt 0:00:57]} ({White should try} 14. Nd5 $1 {[%csl Gd5][%cal Re3e7]} Qxe3+ 15. fxe3) 14... Kxe7 $16 {[%emt 0:00:01]} 15. Nd5+ {[%emt 0:00:15]} Kf8 {[%emt 0:00:43]} 16. Ne2 {[%emt 0:00:16][%cal Bg1e2,Be2g3,Bg3f5][%mdl 32]} b6 {[%emt 0:05:28]} 17. Ne3 {[%emt 0:11:32] Pair of Knights!} Bb7 {[%emt 0:18:17]} 18. d5 {[%emt 0:00:17]} Bh6 {[%emt 0:07:58] [#]} 19. Ng3 $1 {[%emt 0:00:16]} Nf6 {[%emt 0:00:11]} 20. c4 {[%emt 0:00:07]} Re8 {[%emt 0:00:30]} 21. Bd3 {[%emt 0:00:10]} Bxe3+ {[%emt 0:16:26]} 22. fxe3 {[%emt 0:00:14]} Rxe3 {[%emt 0:00:13]} 23. Nf5 {[%emt 0:00:08]} Re8 {[%emt 0:00:22]} (23... Re5 $16 24. Rhf1 Ne8) 24. Rhf1 $18 {[%emt 0:08:41] Black must now prevent Nd6.} Rd8 {[%emt 0:00:07] Against Nd6} 25. Rde1 {[%emt 0:00:49]} Ne8 $2 {[%emt 0:16:35]} (25... b5 26. b3 (26. cxb5 Bxd5 27. Ne3 Bxa2 $11) 26... bxc4 27. bxc4 Bc8) 26. Re7 {[%emt 0:04:37]} Bc8 {[%emt 0:00:04]} 27. Rxa7 {[%emt 0:00:09][%cal Of5h6] Threatens to win with Nh6!} Bxf5 {[%emt 0:00:23]} 28. Rxf5 {[%emt 0:02:16]} Nd6 {[%emt 0:00:18]} 29. Rf4 {[%emt 0:00:04]} (29. Rf6 $6 Kg7 30. Re6 b5 31. cxb5 Kg8) 29... Kg7 {[%emt 0:00:34] [#]} 30. Ra6 {[%emt 0:03:20]} Rb8 {[%emt 0:01:27]} 31. a4 {[%emt 0:01:00]} Rhd8 {[%emt 0:02:00]} 32. b3 {[%emt 0:00:33]} Rd7 {[%emt 0:01:36]} 33. Kc2 {[%emt 0:02:50]} Ne8 {[%emt 0:03:43]} 34. Rf5 {[%emt 0:01:29]} Rdb7 {[%emt 0:00:42] Strongly threatening ...Nc7.} 35. a5 {[%emt 0:02:24]} ({Worse is} 35. Rxh5 Nc7 36. Ra8 Nxa8 $17) 35... bxa5 {[%emt 0:00:18]} 36. Rg5+ {[%emt 0:01:25]} Kf8 {[%emt 0:00:02]} 37. Rh6 {[%emt 0:07:17] And now Rh8+ would win.} ({Weaker is} 37. Rxa5 Rxb3 38. Ra2 (38. Rxc5 Rb2+ 39. Kc1 Rxg2 $11) 38... Ng7 $16) 37... f6 $2 {[%emt 0:05:03]} (37... Rxb3 38. d6 Rb2+ 39. Kc1 Nxd6) 38. Rh8+ {[%emt 0:02:07] White is clearly winning.} Ke7 {[%emt 0:00:14]} 39. Rgg8 {[%emt 0:00:12]} a4 {[%emt 0:01:59] [#]} 40. Rxe8+ $1 {[%emt 0:00:00][%mdl 512]} Kd7 {[%emt 0:01:28] Weighted Error Value: White=0.06 (flawless) /Black=0.26 (precise)} (40... Rxe8 41. Rh7+) 1-0

[Event "LV Capablanca Memorial Elite 2022"]
[Site "La Habana"]
[Date "2022.04.28"]
[Round "9.3"]
[White "Ortiz Suarez, Isan Reynaldo"]
[Black "Albornoz Cabrera, Carlos Daniel"]
[Result "1/2-1/2"]
[WhiteElo "2531"]
[BlackElo "2567"]
[Annotator "TA"]
[PlyCount "19"]
[EventDate "2022.04.20"]
[EventType "tourn"]
[EventCountry "CUB"]
[SourceTitle "playchess.com"]
[Source "ChessBase"]
[SourceQuality "1"]
[TimeControl "40/5400+30:1800+30"]

{[%evp 10,19,24,13,14,0,0,-3,-2,-11,-5,-26]} 1. Nf3 {[%emt 0:00:13]} d5 {[%emt 0:00:04]} 2. d4 {[%emt 0:00:06]} Nf6 {[%emt 0:00:04]} 3. Bf4 {[%emt 0:00:06]} c6 {[%emt 0:00:14]} 4. e3 {[%emt 0:00:09]} Bg4 {[%emt 0:00:05]} 5. Nbd2 {[%emt 0:00:08]} e6 {[%emt 0:00:09]} 6. Bd3 {[%emt 0:00:08]} Bd6 {[%emt 0:00:07] The position is equal. D02: 1 d4 d5 2 Nf3 sidelines, including 2...Nf6 3 g3 and 2...Nf6 3 Bf4.} 7. Bg3 {[%emt 0:00:11]} O-O {[%emt 0:00:07]} 8. O-O {[%emt 0:00:05]} Bxg3 {[%emt 0:00:10]} 9. hxg3 {[%emt 0:00:06] [#]} Nbd7 $146 {[%emt 0:00:05][%cal Oe6e5]} ({Predecessor:} 9... Qb6 10. Qb1 c5 11. dxc5 Qxc5 12. c3 Nc6 13. e4 Bxf3 14. Nxf3 Rad8 15. exd5 Rxd5 {0-1 (30) Kelecevic,N (2294)-Roiz,M (2645) Biel 2010}) 10. c3 {[%emt 0:00:04] Not much happened in this game.  Weighted Error Value: White=0.09 (flawless) /Black=0.01 (flawless)} 1/2-1/2